Cogmind - Beta 14 @@@ ROGUE MODE // 2024.11.08 @ 15:31:01 Player: Kate+Gabe4evr Result: Destroyed by YZ-PGN(z) with Zionite Laser-S Performance ------------- Evolutions (1) 500 Regions Visited (5) 1000 Robots Destroyed (36) 180 Value Destroyed (777) 777 Prototype IDs (3) 60 Alien Tech Used (0) 0 Bonus (929) 929 TOTAL SCORE: 3446 Bonus ------- Follower Combat Kills 74 Destroyed Z-Imprinter 1000 Friendly Fire -145 Cogmind --------- Core Integrity 0/400 Matter 300/300 Energy 31/100 System Corruption 1% Temperature Warning (388) Movement Core (100) Ox1 Location -7/Deep Caves Parts ------- > --- POWER (1) -------- (None) > --- PROPULSION (4) --- (None) > --- UTILITY (2) ------ (None) > --- WEAPON (2) ------- Heavy Beamcaster > --- INVENTORY (5) ---- Improved Signal Interpreter Improved Assault Rifle Improved Assault Rifle Rocket Launcher Heavy Flail Peak State ------------ > --- POWER ------------ Reinforced Ion Engine > --- PROPULSION ------- Wheel Armored Wheel Armored Wheel Armored Wheel > --- UTILITY ---------- Large Storage Unit Zionite Metafield Generator > --- WEAPON ----------- Heavy Beamcaster Heavy Beamcaster > --- INVENTORY -------- Improved Ion Engine Compact Wheel Improved Signal Interpreter Propulsion Shielding Light Armor Plating Hacking Suite Beamcaster Improved Assault Rifle Improved Assault Rifle Improved Assault Rifle Grenade Launcher Rocket Launcher Plasma Cutter Heavy Flail Phasing Sabre [Rating: 34] Favorites ----------- Power Reinforced Ion Engine Engine Reinforced Ion Engine Propulsion Armored Wheel Wheel Armored Wheel Utility Large Storage Unit Device Cooling System Storage Large Storage Unit Weapon Particle Gun Energy Gun Particle Gun Ballistic Gun Improved Assault Rifle Launcher Rocket Launcher Special Weapon Plasma Cutter Build | -11 -10 -9 -9 -7 -7 ------- Run | Yrd Mat Mat Min Zio Dee Slots Evolved 2 | . . 2 . . . Power . | . . . . . . Propulsion 2 | . . 2 . . . Utility . | . . . . . . Weapon . | . . . . . . Parts Attached 41 | 6 17 9 3 1 5 Power 7 | 1 3 2 1 . . Engine 7 | 1 3 2 1 . . Core . | . . . . . . Reactor . | . . . . . . Propulsion 11 | 2 5 2 1 . 1 Treads . | . . . . . . Leg . | . . . . . . Wheel 11 | 2 5 2 1 . 1 Hover . | . . . . . . Flight . | . . . . . . Utility 8 | 1 3 1 1 . 2 Device 6 | . 2 1 1 . 2 Storage 2 | 1 1 . . . . Processor . | . . . . . . Hackware . | . . . . . . Protection . | . . . . . . Artifact . | . . . . . . Weapon 15 | 2 6 4 . 1 2 Energy Gun 11 | 1 6 2 . . 2 Energy Cannon . | . . . . . . Ballistic Gun 2 | 1 . 1 . . . Ballistic Cannon . | . . . . . . Launcher 1 | . . 1 . . . Special Weapon 1 | . . . . 1 . Impact Weapon . | . . . . . . Slashing Weapon . | . . . . . . Piercing Weapon . | . . . . . . Special Melee Weapon . | . . . . . . Unidentified Prototypes 3 | . . 2 . . 1 Corrupted Parts 1 | . . . . . 1 System Corruption 1 | . . . . . 1 Parts Lost 18 | . 8 1 1 . 8 Power 4 | . 2 1 . . 1 Propulsion 9 | . 3 . 1 . 5 Utility 1 | . . . . . 1 Weapon 4 | . 3 . . . 1 Highest Loss Streak 8 | . 7 1 1 . 8 To Critical Strikes . | . . . . . . Average Slot Usage (%) 89 | . 90 99 99 78 97 Engine 11 | . 12 10 11 11 11 Wheel 39 | . 22 44 43 44 41 Device 11 | . 12 11 11 11 10 Storage 11 | . 14 11 11 11 11 Energy Gun 10 | . 18 13 11 . 22 Ballistic Gun 4 | . 9 8 11 . . Peak Build Rating 34 | 6 12 22 22 22 34 Average Rating 16 | 4 7 19 21 15 26 On Entrance 13 | . 6 12 22 22 18 Naked Turns . | . . . . . . Heaviest Build 43 | 12 32 35 37 33 43 Greatest Support 48 | 20 24 48 48 46 46 Greatest Overweight (x) 3 | . 3 . . . 2 Average Overweight (x) . | . . . . . . Largest Inventory Capacity 15 | 8 15 15 15 15 15 Average Capacity 14 | 7 11 15 15 15 14 Most Carried 15 | 2 15 15 15 15 15 Average Carried 13 | . 5 14 15 14 14 Final Capacity 15 | 8 15 15 15 15 5 Final Carried 15 | 2 14 15 15 15 5 Class Distribution -------------------- 100% | Mutant Dominant Class ---------------- Mutant | -10/Materials Mutant | -9/Materials Mutant | -9/Mines Mutant | -7/Zion Mutant | -7/Deep Caves Resources | -11 -10 -9 -9 -7 -7 ----------- Run | Yrd Mat Mat Min Zio Dee Matter Collected 720 | 189 187 183 111 . 50 Remotely . | . . . . . . Salvage Created 1276 | . 367 708 126 . 75 Parts 79 | . 24 46 7 . 2 Haulers Intercepted 1 | . . 1 . . . Recyclers Shooed 5 | . 4 1 . . . Parts Field Recycled . | . . . . . . Retrieved Matter . | . . . . . . Parts Self-Destructed . | . . . . . . Prevented . | . . . . . . Kills | -11 -10 -9 -9 -7 -7 ------- Run | Yrd Mat Mat Min Zio Dee Combat Hostiles Destroyed 26 | . 6 16 3 . 1 Guns 22 | . 5 13 3 . 1 AOE 3 | . . 3 . . . Classes Destroyed 10 | . 3 6 . . 1 Worker 4 | . 2 1 1 . . Builder 1 | . . 1 . . . Hauler 1 | . . 1 . . . Recycler 3 | . 1 2 . . . Operator 1 | . . 1 . . . Swarmer 8 | . . 7 1 . . Grunt 12 | . 6 5 1 . . Brawler 3 | . . 2 1 . . Sentry 2 | . . 2 . . . Assembled 1 | . . . . . 1 Thug 1 | . . . . . 1 Best Kill Streak 6 | . 3 6 3 . 1 Combat Bots Only 4 | . 3 4 1 . 1 Max Kills in Single Turn 4 | . 1 4 1 . 1 Gunslinging 1 | . . 1 . . . Exploded 3 | . . 3 . . . Melee . | . . . . . . Uniques/NPCs Destroyed 1 | . . . . . 1 Z-Imprinter (-7/Deep Caves) Combat | -11 -10 -9 -9 -7 -7 -------- Run | Yrd Mat Mat Min Zio Dee Hostile Shots Fired 177 | . 58 50 16 . 53 Missed 43 | . 9 14 5 . 15 Damage Taken 2388 | . 814 378 184 . 1012 Core 613 | . 199 75 24 . 315 Absorbed by Shields . | . . . . . . Core Remaining (%) 60 | 100 20 . . . . Volleys Fired 109 | . 44 36 16 . 13 Largest 2 | . 2 2 2 . 2 Hottest 162 | . 105 130 84 . 162 Shots Fired 210 | . 80 72 32 . 26 Gun 209 | . 80 71 32 . 26 Cannon . | . . . . . . Launcher 1 | . . 1 . . . Special . | . . . . . . Kinetic 65 | . 29 20 16 . . Thermal 144 | . 51 51 16 . 26 Explosive 1 | . . 1 . . . Electromagnetic . | . . . . . . Robot Hit Streak 10 | . 8 10 8 . 3 Robot Miss Streak 3 | . 3 2 2 . 3 Penetration Max . | . . . . . . Secondary Targets 6 | . 1 4 . . 1 Max Gunslinging Chain 1 | . 1 1 . . 1 Shots Hit Robots 136 | . 49 49 24 . 14 Core Hits 61 | . 21 30 5 . 5 Critical Kills . | . . . . . . Critical Parts Destroyed . | . . . . . . Critical Strikes 3 | . . 1 2 . . Burn 3 | . . 1 2 . . Melee Attacks . | . . . . . . Impact . | . . . . . . Slashing . | . . . . . . Piercing . | . . . . . . Sneak Attacks . | . . . . . . Combat Hostiles . | . . . . . . Follow-up Attacks . | . . . . . . Damage Inflicted 2284 | . 604 931 382 . 367 Guns 2102 | . 587 766 382 . 367 Cannons . | . . . . . . Explosions 175 | . 10 165 . . . Melee . | . . . . . . Ramming 7 | . 7 . . . . Kinetic 460 | . 132 184 144 . . Thermal 1642 | . 455 582 238 . 367 Explosive 165 | . . 165 . . . Electromagnetic 10 | . 10 . . . . Impact . | . . . . . . Slashing . | . . . . . . Piercing . | . . . . . . Highest Corruption 3 | . 2 . 3 3 1 Average Corruption 2 | . 2 . 3 3 1 Corruption Purged . | . . . . . . Corruption Blocked . | . . . . . . Effects 4 | . . . 1 2 1 Message Errors 2 | . . . . 1 1 Matter Fused 1 | . . . 1 . . Data Loss (minor) 1 | . . . . 1 . Overload Shots . | . . . . . . Overflow Damage . | . . . . . . Projectiles . | . . . . . . Explosions . | . . . . . . Melee . | . . . . . . Knockbacks . | . . . . . . Impact . | . . . . . . Kinetic . | . . . . . . Secondary . | . . . . . . Self-Inflicted Damage 134 | . 134 . . . . Shots 3 | . 3 . . . . Rammed 1 | . 1 . . . . Targets Rammed 1 | . 1 . . . . Kicked . | . . . . . . Crushed . | . . . . . . Highest Temperature 435 | . 435 175 2 . 389 Average Temperature 119 | . 152 62 2 . 111 Received Heat Transfer 864 | . 435 144 42 . 243 Effects 3 | . 3 . . . . Shutdowns 2 | . 2 . . . . Short Circuit 1 | . 1 . . . . Siege Activations . | . . . . . . Robots Corrupted . | . . . . . . Combat Hostiles . | . . . . . . Parts Fried . | . . . . . . Impact Corruptions . | . . . . . . Robots Melted 1 | . 1 . . . . Combat Hostiles 1 | . 1 . . . . Parts Melted 5 | . 1 2 2 . . Heat Transferred 3507 | . 1067 1406 666 . 368 Parts Sabotaged . | . . . . . . Parts Stolen . | . . . . . . Parts Stripped . | . . . . . . Power Chain Reactions 1 | . 1 . . . . Alert | -11 -10 -9 -9 -7 -7 ------- Run | Yrd Mat Mat Min Zio Dee Peak Influence 394 | . 180 394 143 . . Initial 78 | . . . 78 . . Average 130 | . 66 190 114 . . Maximum Alert Level 1 | . . 1 . . . Low Security (%) 75 | 100 100 49 100 . . Level 1 24 | . . 50 . . . Level 2 . | . . . . . . Level 3 . | . . . . . . Level 4 . | . . . . . . Level 5 . | . . . . . . High Security . | . . . . . . Max Security . | . . . . . . Squads Dispatched 2 | . 1 . 1 . . Investigation . | . . . . . . Extermination . | . . . . . . Reinforcement 1 | . 1 . . . . Assault 1 | . . . 1 . . Garrison . | . . . . . . Intercept . | . . . . . . Searches Triggered . | . . . . . . Construction Impeded . | . . . . . . Haulers Reinforced . | . . . . . . Active Scanning Responses . | . . . . . . Cargo Convoy Interrupts . | . . . . . . Stealth | -11 -10 -9 -9 -7 -7 --------- Run | Yrd Mat Mat Min Zio Dee Distress Signals 3 | . 2 1 . . . Communications Jammed . | . . . . . . Distress Signals . | . . . . . . Times Spotted 58 | . 16 25 4 . 13 Peak Tracking Total 7 | . 5 7 3 . 7 Tactical Retreats 2 | . 1 1 . . . Traps | -11 -10 -9 -9 -7 -7 ------- Run | Yrd Mat Mat Min Zio Dee Traps Triggered . | . . . . . . Indirectly . | . . . . . . Trap Hack Attempts . | . . . . . . Triggered . | . . . . . . Disarmed . | . . . . . . Reprogrammed . | . . . . . . Reused . | . . . . . . Traps Extracted . | . . . . . . Installed . | . . . . . . Triggered . | . . . . . . Machines | -11 -10 -9 -9 -7 -7 ---------- Run | Yrd Mat Mat Min Zio Dee Machines Disabled 7 | . 2 . . 3 2 Max in Single Turn 2 | . 2 . . 1 . Machines Repaired . | . . . . . . Machines Dismantled 3 | . . . . 3 . Machines Sabotaged . | . . . . . . Overloaded Fab Kills . | . . . . . . Hacking | -11 -10 -9 -9 -7 -7 --------- Run | Yrd Mat Mat Min Zio Dee Machines Accessed 4 | . 1 3 . . . Terminals 4 | . 1 3 . . . Fabricators . | . . . . . . Repair Stations . | . . . . . . Recycling Units . | . . . . . . Scanalyzers . | . . . . . . Garrison Access . | . . . . . . Total Hacks 6 | . 1 5 . . . Successful 3 | . 1 2 . . . Failed 3 | . . 3 . . . Catastrophic 1 | . . 1 . . . Database Lockouts . | . . . . . . Manual 6 | . 1 5 . . . Terminals 6 | . 1 5 . . . Fabricators . | . . . . . . Repair Stations . | . . . . . . Recycling Units . | . . . . . . Scanalyzers . | . . . . . . Garrison Access . | . . . . . . Terminal Hacks 1 | . . 1 . . . Unreport Threat 1 | . . 1 . . . Fabricator Hacks . | . . . . . . Repair Station Hacks . | . . . . . . Recycling Unit Hacks . | . . . . . . Scanalyzer . | . . . . . . Garrison Access Hacks . | . . . . . . Unauthorized Hacks 2 | . 1 1 . . . Terminals 2 | . 1 1 . . . Assimilate 1 | . 1 . . . . Botnet 1 | . . 1 . . . Fabricators . | . . . . . . Repair Stations . | . . . . . . Recycling Units . | . . . . . . Scanalyzers . | . . . . . . Garrison Access . | . . . . . . Data Cores Recovered 1 | . . 1 . . . Used 1 | . . 1 . . . Hacking Detections 2 | . . 2 . . . Full Trace Events . | . . . . . . Feedback Events . | . . . . . . Feedback Blocked . | . . . . . . Robot Schematics Acquired . | . . . . . . Robots Built . | . . . . . . Authchips . | . . . . . . Time . | . . . . . . Total Robot Build Rating . | . . . . . . Part Schematics Acquired . | . . . . . . Parts Built . | . . . . . . Authchips . | . . . . . . Time . | . . . . . . Total Part Build Rating . | . . . . . . Parts Repaired . | . . . . . . Time . | . . . . . . Parts Recycled . | . . . . . . Recycled Matter . | . . . . . . Retrieved Matter . | . . . . . . Retrieved Components . | . . . . . . Parts Scanalyzed . | . . . . . . Part Schematics Acquired . | . . . . . . Parts Damaged . | . . . . . . Bothacking | -11 -10 -9 -9 -7 -7 ------------ Run | Yrd Mat Mat Min Zio Dee Used RIF Installer . | . . . . . . Robots Hacked . | . . . . . . Non-combat . | . . . . . . Combat . | . . . . . . Robot Hacks Applied . | . . . . . . Relay Couplers Released . | . . . . . . Fabnet Peak Effective % . | . . . . . . Robots Rewired . | . . . . . . Allies Hacked . | . . . . . . Hacks Repelled . | . . . . . . Allies | -11 -10 -9 -9 -7 -7 -------- Run | Yrd Mat Mat Min Zio Dee Total Allies 12 | . 1 . 1 10 . Largest Group 11 | . 1 1 1 11 11 Highest-Rated Group 267 | . 10 10 31 267 267 Highest-Rated Ally 31 | . 10 10 31 31 31 Total Orders . | . . . . . . Ally Attacks 84 | . . . . . 84 Total Damage 2628 | . . . . . 2628 Kills 14 | . . . . . 14 Allies Corrupted . | . . . . . . Allies Melted . | . . . . . . Intel | -11 -10 -9 -9 -7 -7 ------- Run | Yrd Mat Mat Min Zio Dee Robot Analysis Total . | . . . . . . Derelict Logs Recovered 1 | . . . . 1 . Drone Launches . | . . . . . . Drone Recoveries . | . . . . . . Exploration | -11 -10 -9 -9 -7 -7 ------------- Run | Yrd Mat Mat Min Zio Dee Turns Passed 2517 | 55 415 602 164 960 321 Spaces Moved 2130 | 53 276 446 120 924 311 Core 6 | 4 . . . . 2 Treads . | . . . . . . Legs . | . . . . . . Wheels 2124 | 49 276 446 120 924 309 Hover . | . . . . . . Flight . | . . . . . . Fastest Speed 50 | 50 80 90 87 87 87 Average Speed 87 | 77 89 90 87 87 87 Slowest Speed 130 | 80 125 90 90 87 130 Overloaded Moves . | . . . . . . Propulsion Burnouts . | . . . . . . Robots Hopped . | . . . . . . Cave-ins Triggered . | . . . . . . Exploration Rate (%) 43 | 3 58 46 26 82 45 Regions Visited 5 Branch Regions 3 Pre-discovered Areas . | . . . . . . Known Exits Taken . | . . . . . . Unknown Exits Taken 5 | 1 1 1 1 1 . Scrap Searched 3 | . . . 1 2 . Spaces Dug . | . . . . . . Terrain Destroyed 12 | . 4 8 . . . Melee . | . . . . . . Projectile . | . . . . . . AOE 12 | . 4 8 . . . Terrain Rammed . | . . . . . . Walls Destroyed . | . . . . . . Machines Disabled . | . . . . . . Actions | -11 -10 -9 -9 -7 -7 --------- Run | Yrd Mat Mat Min Zio Dee Total 2516 | 63 364 582 147 1027 333 Wait 151 | 3 14 61 7 66 . Move 2125 | 52 275 445 119 923 311 Hop . | . . . . . . Pick Up 32 | 2 11 15 . 3 1 Fast Attach 16 | 6 5 2 1 . 2 Attach 11 | . 5 3 . 1 2 Detach 5 | . 1 2 . 2 . Swap 14 | . 7 4 2 . 1 Drop 24 | . 1 14 2 4 3 Fire 109 | . 44 36 16 . 13 Melee . | . . . . . . Ram 1 | . 1 . . . . Kick . | . . . . . . Crush . | . . . . . . Escape Stasis . | . . . . . . Rewire . | . . . . . . Trap . | . . . . . . Miscellaneous 28 | . . . . 28 . Route ------- -11/Scrapyard -10/Materials (discovered 2 exits: *Mat / [*Min]) -9/Materials (discovered 2 exits: [*Mat] / [*Min]) -9/Mines -7/Zion (discovered 2 exits: [*Dee] / [*Pro]) -7/Deep Caves History --------- Turn | Location | Event 13 | -11/Scrapyard | Discovered new exit (range 15) 56 | -11/Scrapyard | Entered Materials 173 | -10/Materials | Discovered new exit (range 11) 308 | -10/Materials | Build established: Mutant 429 | -10/Materials | Core integrity fell below 50% 459 | -10/Materials | Lost 7 parts (2p2n3w) 466 | -10/Materials | Discovered new exit (range 4) 471 | -10/Materials | Entered another Materials area 471 | -9/Materials | Accompanied by 1 ally 471 | -9/Materials | Evolved 2 slots: Propulsion x2 736 | -9/Materials | Discovered new exit (range 13) 1057 | -9/Materials | Discovered new exit (range 16) 1073 | -9/Materials | Entered Mines 1081 | -9/Mines | A Derelict revealed a hidden shortcut to a safe place 1161 | -9/Mines | Met a Derelict testing a Signal Generator 1237 | -9/Mines | Entered Zion 1237 | -7/Zion | Accompanied by 1 ally 1306 | -7/Zion | Discovered new exit (range 8) 1389 | -7/Zion | System corruption cleaned by Quarantine Array 1577 | -7/Zion | Gained Derelict followers 1655 | -7/Zion | Gained Derelict followers 1759 | -7/Zion | Learned location of 1 exit from Proximity Caves 2172 | -7/Zion | Discovered new exit (range 5) 2175 | -7/Zion | Saw the warning signs outside the Deep Caves entrance 2197 | -7/Zion | Entered Deep Caves 2197 | -7/Deep Caves | Accompanied by 11 allies 2336 | -7/Deep Caves | Z-Facility disabled 2337 | -7/Deep Caves | Attacked by Z-Imprinter 2355 | -7/Deep Caves | Allies destroyed Z-Imprinter 2393 | -7/Deep Caves | Found Corrupted Prototype Device 2393 | -7/Deep Caves | Identified Zio. Metafield Generator 2402 | -7/Deep Caves | Lost 6 allies 2507 | -7/Deep Caves | Core integrity fell below 50% 2517 | -7/Deep Caves | Core integrity fell below 20% 2518 | -7/Deep Caves | Destroyed by YZ-PGN(z) with Zionite Laser-S Last Messages --------------- 02387_ Acquired Beamcaster. 02392_ Dropped Cooling System. 02393_ Acquired Corrupted Prototype Device. 02393_ Identified Zio. Metafield Generator. 02393_ Integrated Corrupted Zio. Metafield Generator (+1). 02396_ Dropped Zio. Metafield Generator. 02398_ Acquired Cooling System. 02403_ Acquired 20 matter. 02417_ PK# BT#K=4MZF 02500_ Wheel destroyed. 02506_ Cooling System destroyed. 02508_ as-46402 destroyed. 02508_ Switching to secondary target: as-46214. 02510_ Com. Wheel destroyed. 02510_ Rnf. Ion Engine destroyed. 02511_ Destroyed Asb. Hover Unit. 02517_ Dropped Lrg. Storage Unit. 02517_ Hvy. Beamcaster destroyed. Map ----- +----------------------------------------------------+ | ??????????????????????????? ? | | ??????????????????????????## ? | | ??????????????????????????# "? | | ???????????????????????#### "" | | ???????????????????????# # "" | | ???????????????????????? "" | | ?????????????????????????# "" | | ??????????????????????????" "" | | ?????????????????????????## " | | ????????????????????????## " | | ????????????????????????#"" | | ???????????????????????###" * | | ??????????????????????## " [%! | | ??????????????????????# !% | | ??????????????????????# ! | | ??????????????????????# | | ??????????????????????## | | ???????????????????????### | | ?????????????????????????# | | ?????????????????????????## | | ??????????????????????????# | | ???????????????????????##### | | ??????????????????????## ## | | ??????????????????????# ## | | ??????????????????????# !#/z | | ??????????????????????# @%z*zz | | ?????????????????????# a!| | | ?????????????????? [ | | ????????????????# | | ????????????????# a | | ????????????????# ### ???????? | | ???????????????# ???# ???????? | | ??????????????# ????;## ????????? | | ????????????? ?????##?# ????????? | | ????????????? ?????????## ?????????? | | ????????????????????????# ?????????? | | ????????????????????????# ##??????????? | | ????????????????????????## ##????????????? | | ?????????????????????????# ??????????????? | | ??????????????????????????# ###?????????????????? | | ???????????????????????????##????????????????????? | | | | | | | | | | | | | | | | | | | +----------------------------------------------------+ Best States ------------- Heat Dissipation 50 Energy Generation 12 Energy Capacity 265 Matter Stores 300 Matter Capacity 300 Sight Range 16 Terrain Scan Density 10 ECM Strength 1 Evasion (%) 44 Item Schematics ----------------- None Robot Schematics ------------------ None Fabricated ------------ Nothing Alien Tech Used ----------------- None Achievements -------------- None Challenges ------------ None Game ------ Seed LightSeismicMapper Manual? 0 Play Time 00:23:59 Cumulative 62.7 hours Start 2024.11.08 @ 15:10:19 End 2024.11.08 @ 15:31:01 Sessions 1 Manual Loads 0 Difficulty Rogue Special Mode None Game No. 116 Rogue 116 Adventurer 0 Explorer 0 Win Type - Total 1 Types 1/0/0/0/0/0/0/0/0 Lore% 49 Gallery% 53 Achievement% 45 Wizard Run 0 Options --------- Layout 0 ASCII 0 Keyboard 1 Movement Numpad Keybinds 0 Fullscreen 2 Font 24/Terminus Map View 76x50 Zoom Use 0% Tactical HUD 1 Map Filters NONE Filters NONE Steam 1 RUN: 6de0979e-3785-4450-8159-9d00ca920268